fUSD/lending_fUSD_20240715
["ID","MTS","AMOUNT","RATE_DAILY","PERIOD"]
[332220051,1721047839031,-40460.0,0.00014,2]
[332220052,1721047839043,-1041.19482748,0.00014,2]
[332220053,1721047839055,-1876.43931272,0.00014,2]
[332220054,1721047839066,-531.79482725,0.00014,2]
[332220055,1721047839082,-652.16989619,0.00014,2]
[332220061,1721047839801,-156.0,0.00013899,2]
[332220062,1721047839812,-21766.23458186,0.00014,2]
[332220063,1721047839858,-1283.9577871,0.00014,2]
[332220064,1721047839869,-313.565,0.00014,2]
[332220065,1721047839880,-1043.21965598,0.00014,2]
[332220066,1721047839973,-676.47483956,0.00014,2]
[332220067,1721047839985,-522.77982189,0.00014,2]
[332220281,1721047842671,-6014.35944857,0.00014,2]
[332220287,1721047842728,-498.7999998,0.00014,2]
[332220289,1721047842740,-4650.0,0.00014,2]
[332220292,1721047842784,-276313.57996753,0.00014,2]
[332220293,1721047842796,-1225.80951365,0.00014,2]
[332220294,1721047842807,-1007.77855702,0.00014,2]
[332220295,1721047842842,-919.11644555,0.00014,2]
[332220296,1721047842902,-456.17734228,0.00014,2]
[332220297,1721047842914,-5993.96581954,0.00014,2]
[332220298,1721047842926,-1448.63415379,0.00014,2]
[332220299,1721047842940,-5453.45619711,0.00014,2]
[332220300,1721047842952,-362.07437022,0.00014,2]
[332220301,1721047842964,-372.985,0.00014,2]
[332220302,1721047842979,-559.3204607,0.00014,2]
[332220303,1721047842989,-10397.62039256,0.00014,2]
[332220304,1721047843001,-3953.81927455,0.00014,2]
[332220305,1721047843025,-630.36197754,0.00014,2]
[332220323,1721047845608,-2090.1351458,0.00013995,2]
[332220325,1721047845618,-13644.2998542,0.00014,2]
[332220327,1721047845667,-673.46432981,0.00014,2]
[332220328,1721047845678,-3071.36628471,0.00014,2]
[332220329,1721047845781,-270.35050001,0.00014,2]
[332220330,1721047845792,-10098.3564,0.00014,2]
[332220331,1721047845803,-866043.6174242,0.00014,2]
[332220332,1721047845895,-859.30200723,0.00014,2]
[332220333,1721047845906,-690.60022199,0.00014,2]
[332220334,1721047845916,-898.31109779,0.00014,2]
[332220401,1721048515724,359.0,0.00027,120]
[332220407,1721048658471,-4483.19576165,0.00010083,2]
[332220408,1721048658492,-164.73,0.00010183,2]
[332220409,1721048658978,-173.23,0.00010197,2]
[332220410,1721048659004,-360.56,0.00010866,2]
[332220411,1721048659027,-585.0,0.00010957,2]
[332220412,1721048659049,-524.91121126,0.00011098,2]
[332220415,1721048715044,-188.2913469,0.00011098,2]
[332220416,1721048715065,-10520.08168019,0.00011098,2]
[332220451,1721049031762,-489.30737314,0.00010897,2]
[332220452,1721049031771,-54.79251266,0.00010996,2]
[332220453,1721049031819,-498.20748734,0.00010996,2]
[332220454,1721049031828,-682.53625922,0.00010997,2]
[332220455,1721049031877,-344.7255,0.00010997,2]
[332220456,1721049031889,-3455.93400243,0.00010997,2]
[332220457,1721049031898,-300.0,0.00011096,2]
[332220458,1721049031908,-728.42,0.00011097,2]
[332220459,1721049031917,-8707.2694009,0.00011097,2]
[332220460,1721049031927,-150.0,0.00011097,2]
[332220461,1721049031938,-7828.41576356,0.00011097,2]
[332220462,1721049031947,-5667.10509746,0.00011098,2]
[332220463,1721049031956,-414.0867539,0.00011098,2]
[332220464,1721049031966,-181.39244222,0.00011098,2]
[332220465,1721049031975,-158.70478125,0.00011098,2]
[332220466,1721049031984,-1216.17801083,0.00011098,2]
[332220467,1721049031994,-290.94871821,0.00011098,2]
[332220468,1721049032003,-6317.42788821,0.00011098,2]
[332220469,1721049032012,-155.0,0.00011098,2]
[332220470,1721049032022,-23286.81392069,0.00011098,2]
[332220471,1721049032037,-4443.51873846,0.00011098,2]
[332220472,1721049032054,-870.73526763,0.00011098,2]
[332220473,1721049032066,-351.56071379,0.00011098,2]
[332220474,1721049032080,-423.56713528,0.00011098,2]
[332220475,1721049032091,-4281.9081366,0.00011098,2]
[332220489,1721049037752,-3414.75,0.00011098,2]
[332220490,1721049037913,-1632.3621893,0.00011098,2]
[332220491,1721049037971,-1178.17123837,0.00011098,2]
[332220492,1721049037983,-13561.76674717,0.00011098,2]
[332220493,1721049038032,-182516.95770309,0.00011098,2]
[332220494,1721049038043,-2142.27228567,0.00011098,2]
[332220495,1721049038054,-425.26598198,0.00011098,2]
[332220496,1721049038065,-492.55741441,0.00011098,2]
[332220497,1721049038078,-1014.8383115,0.00011098,2]
[332220498,1721049038089,-376.7278877,0.00011098,2]
[332220499,1721049038099,-1984.78330199,0.00011196,2]
[332220500,1721049038112,-35620.80251917,0.00011199,2]
[332220501,1721049038123,-14975.36667626,0.00011199,2]
[332220502,1721049038135,-19649.39918542,0.00011199,2]
[332220503,1721049038147,-265.47446231,0.00011199,2]
[332220504,1721049038158,-1048.1930682,0.00011199,2]
[332220505,1721049038170,-155.0,0.00011199,2]
[332220506,1721049038180,-420.0,0.00012192,2]
[332220507,1721049038190,-155.0,0.00012273,2]
[332220508,1721049038200,-300.0,0.00012273,2]
[332220509,1721049038210,-156.09391946,0.00012273,2]
[332220510,1721049038220,-214.90120291,0.00012302,2]
[332220511,1721049038230,-201.94529503,0.00012314,2]
[332220512,1721049038241,-250.0,0.00012666,2]
[332220513,1721049038251,-23900.0,0.00012759,2]
[332220514,1721049038263,-257.47,0.00012766,2]
[332220515,1721049038274,-199.08003031,0.000129,2]
[332220516,1721049038284,-199.08003029,0.000129,2]
[332220517,1721049038294,-1000.0,0.00012919,2]
[332220518,1721049038304,-424.71,0.00013044,2]
[332220520,1721049038314,-150.0,0.00013044,2]
[332220521,1721049038325,-150.0,0.00013044,2]
[332220522,1721049038335,-150.0,0.00013044,2]
[332220523,1721049038346,-150.0,0.00013044,2]
[332220524,1721049038356,-165.11,0.00013044,2]
[332220525,1721049038367,-150.0,0.00013044,2]
[332220526,1721049038377,-150.0,0.00013044,2]
[332220527,1721049038388,-200.0,0.000131,4]
[332220528,1721049038398,-300.0,0.00013128,2]
[332220529,1721049038407,-196.69910103,0.00013128,2]
[332220530,1721049038417,-239.55651732,0.00013128,2]
[332220531,1721049038427,-360.56,0.0001313,2]
[332220532,1721049038438,-500.0,0.000132,4]
[332220533,1721049038449,-726.33,0.00013278,2]
[332220534,1721049038460,-150.0,0.00013278,2]
[332220535,1721049038471,-319.96,0.00013278,2]
[332220536,1721049038481,-300.0,0.00013278,2]
[332220537,1721049038491,-424.98,0.00013278,2]
[332220538,1721049038501,-150.0,0.00013278,2]
[332220539,1721049038512,-165.11,0.00013278,2]
[332220540,1721049038522,-150.0,0.00013278,2]
[332220541,1721049038532,-710.58,0.00013278,2]
[332220542,1721049038542,-800.0,0.000133,4]
[332220543,1721049038553,-587.0,0.00013396,2]
[332220544,1721049038563,-1100.0,0.000134,4]
[332220545,1721049038574,-702.11,0.00013441,2]
[332220546,1721049038584,-855.07,0.00013441,2]
[332220547,1721049038595,-4463.77591731,0.00013452,2]
[332220548,1721049038605,-1265.01058332,0.00013452,2]
[332220549,1721049038615,-742.2776652,0.00013452,2]
[332220550,1721049038625,-544.54505378,0.00013452,2]
[332220551,1721049038635,-1297.11014396,0.00013452,2]
[332220552,1721049038646,-2199.77755191,0.00013452,2]
[332220553,1721049038656,-155.0,0.00013452,2]
[332220554,1721049038666,-2739.31422748,0.00013472,2]
[332220555,1721049038676,-1400.0,0.000135,4]
[332220556,1721049038686,-155.0,0.00013543,2]
[332220557,1721049038696,-151.88,0.00013552,2]
[332220558,1721049038707,-150.0,0.00013552,2]
[332220559,1721049038716,-200.0,0.000136,4]
[332220560,1721049038728,-882.25,0.00013698,2]
[332220561,1721049038738,-500.0,0.00013698,2]
[332220562,1721049038748,-500.0,0.00013698,2]
[332220563,1721049038758,-279.91,0.00013699,2]
[332220564,1721049038769,-163.38,0.00013699,2]
[332220565,1721049038779,-200.0,0.000137,5]
[332220566,1721049038789,-311.81936553,0.00013749,2]
[332220567,1721049038799,-882.25,0.00013753,2]
[332220568,1721049038809,-402.06,0.00013753,2]
[332220569,1721049038819,-1883.79068713,0.00013759,2]
[332220570,1721049038830,-500.0,0.00013779,2]
[332220571,1721049038840,-297.19218126,0.00013779,2]
[332220572,1721049038850,-735.39,0.00013779,2]
[332220573,1721049038860,-14164.821,0.00013779,2]
[332220574,1721049038870,-500.0,0.00013779,2]
[332220575,1721049038880,-550.76,0.00013779,2]
[332220576,1721049038891,-500.0,0.0001378,2]
[332220577,1721049038901,-2503.61,0.000138,2]
[332220578,1721049038911,-200.0,0.000138,5]
[332220579,1721049038921,-882.25,0.00013808,2]
[332220580,1721049038932,-500.0,0.00013834,2]
[332220581,1721049038942,-735.39,0.00013834,2]
[332220582,1721049038954,-500.0,0.00013834,2]
[332220583,1721049038964,-550.76,0.00013834,2]
[332220584,1721049038974,-1254.03635287,0.00013849,2]
[332220585,1721049038985,-155.0,0.00013849,2]
[332220586,1721049038996,-155.0,0.00013849,2]
[332220587,1721049039006,-150.446,0.0001386,2]
[332220588,1721049039016,-150.104,0.0001386,2]
[332220589,1721049039030,-150.0,0.0001386,2]
[332220590,1721049039041,-882.25,0.00013863,2]
[332220591,1721049039051,-500.0,0.00013889,2]
[332220592,1721049039061,-735.39,0.00013889,2]
[332220593,1721049039074,-500.0,0.00013889,2]
[332220594,1721049039084,-550.76,0.00013889,2]
[332220595,1721049039094,-691.88678279,0.00013889,2]
[332220596,1721049039105,-5644.0583,0.00013895,2]
[332220597,1721049039115,-155.0,0.00013899,2]
[332220598,1721049039126,-731.2667,0.000139,2]
[332220599,1721049039136,-40000.0,0.000139,2]
[332220600,1721049039146,-1000.0,0.000139,2]
[332220601,1721049039156,-200.0,0.000139,5]
[332220602,1721049039166,-199.08003029,0.000139,2]
[332220603,1721049039177,-882.25,0.00013917,2]
[332220604,1721049039187,-500.0,0.00013944,2]
[332220605,1721049039198,-735.39,0.00013944,2]
[332220606,1721049039208,-500.0,0.00013944,2]
[332220607,1721049039218,-550.76,0.00013944,2]
[332220608,1721049039228,-882.25,0.00013972,2]
[332220609,1721049039239,-1296.578296,0.00013973,2]
[332220610,1721049039249,-371.1851228,0.00013989,2]
[332220611,1721049039259,-500.0,0.0001399,2]
[332220612,1721049039270,-1561.9641654,0.00013995,2]
[332220613,1721049039280,-23384.142317,0.00013995,2]
[332220614,1721049039290,-2026.0947774,0.00013995,2]
[332220615,1721049039300,-276.6509712,0.00013995,2]
[332220616,1721049039310,-278.31377295,0.00013997,2]
[332220617,1721049039320,-500.0,0.00013998,2]
[332220618,1721049039330,-735.39,0.00013998,2]
[332220619,1721049039340,-500.0,0.00013998,2]
[332220620,1721049039350,-550.76,0.00013998,2]
[332220621,1721049039361,-152.15257567,0.00013999,2]
[332220622,1721049039370,-583.0,0.00013999,2]
[332220623,1721049039380,-500.0,0.00013999,2]
[332220624,1721049039391,-500.0,0.00013999,2]
[332220625,1721049039402,-344.01024062,0.00013999,2]
[332220626,1721049039412,-496.88909322,0.00013999,2]
[332220627,1721049039422,-570.81343278,0.00013999,2]
[332220628,1721049039432,-500.0,0.00013999,2]
[332220629,1721049039442,-500.0,0.00013999,2]
[332220630,1721049039452,-500.0,0.00013999,2]
[332220631,1721049039463,-500.0,0.00013999,2]
[332220632,1721049039473,-500.0,0.00013999,2]
[332220633,1721049039483,-201.04,0.00013999,2]
[332220634,1721049039493,-500.0,0.00013999,2]
[332220635,1721049039503,-500.0,0.00013999,2]
[332220636,1721049039513,-417.72,0.00013999,2]
[332220637,1721049039523,-616.92384194,0.00013999,2]
[332220638,1721049039533,-507.74114031,0.00013999,2]
[332220639,1721049039543,-916.47,0.00013999,2]
[332220640,1721049039553,-2012.14,0.00013999,2]
[332220641,1721049039563,-2850.92880264,0.00014,2]
[332220642,1721049039574,-67265.59744013,0.00014,2]
[332220643,1721049039584,-575.0,0.00014,2]
[332220644,1721049039595,-220349.54179003,0.00014,2]
[332220649,1721049040076,-95108.43627235,0.00014,2]
[332220650,1721049040087,-4088.78794011,0.00014,2]
[332220651,1721049040164,-306.91625604,0.00013452,2]
[332220652,1721049040174,-364.62374395,0.00014,2]
[332220653,1721049040184,-21148.61220765,0.00014,2]
[332220654,1721049040196,-1030.87721829,0.00014,2]
[332220655,1721049040207,-2442.47303697,0.00014,2]
[332220656,1721049040218,-7054.56,0.00014,2]
[332220657,1721049040230,-732.27203362,0.00014,2]
[332220796,1721049042882,-165.4084403,0.00013452,2]
[332220797,1721049042891,-117270.9287639,0.00014,2]
[332220798,1721049042903,-6715.14982374,0.00014,2]
[332220799,1721049042914,-1224.5387,0.00014,2]
[332220800,1721049042925,-1738.02113,0.00014,2]
[332220801,1721049042940,-1310.01098762,0.00014,2]
[332220803,1721049042953,-5981.31972655,0.00014,2]
[332220804,1721049043013,-680.84002523,0.00014,2]
[332220805,1721049043109,-8783.19619374,0.00014,2]
[332220806,1721049043120,-285.43780332,0.00014,2]
[332220807,1721049043165,-19806.34964143,0.00014,2]
[332220853,1721049045892,-2234.56167951,0.00013999,2]
[332220854,1721049045904,-3157.8479506,0.00013999,2]
[332220856,1721049045913,-254404.93518322,0.00014,2]
[332220862,1721049046004,-2136.53960588,0.00014,2]
[332220864,1721049046015,-522.23783259,0.00014,2]
[332220866,1721049046027,-6362.28804746,0.00014,2]
[332220875,1721049046146,-2308.05522489,0.00014,2]
[332220877,1721049046161,-5233.30058778,0.00014,2]
[332220998,1721049367784,10000.0,0.00025,60]
[332220999,1721049386484,151.0,0.00027,120]
[332221003,1721049405528,151.0,0.00027,120]
[332221004,1721049412672,151.356169,0.00027,120]
[332221010,1721049931118,-164.72,0.00010081,2]
[332221011,1721049931141,-428.94,0.00010624,2]
[332221012,1721049931162,-184.28825684,0.00010996,2]
[332221013,1721049947140,960.89206454,0.00010996,2]
[332221014,1721049949330,214.2587667,0.00010996,2]
[332221016,1721049966415,193.85104988,0.00010996,2]
[332221017,1721049967150,290.94871821,0.00010996,2]
[332221018,1721049967964,178.0332214,0.00010996,2]
[332221019,1721049975905,208.74687532,0.00010996,2]
[332221020,1721049980114,7562.05811425,0.00010996,2]
[332221021,1721049984347,7613.26293286,0.00010996,2]
[332221024,1721050084546,2227.80400413,0.0001,2]
[332221027,1721050110271,235962.11179038,0.0001,2]
[332221028,1721050117126,7562.05811425,0.0001,2]
[332221029,1721050117638,181.39244222,0.0001,2]
[332221031,1721050120111,1368.73674718,0.0001,2]
[332221032,1721050120141,960.89206454,0.0001,2]
[332221033,1721050120495,2191.09543096,0.0001,2]
[332221034,1721050124925,155.0,0.0001,2]
[332221036,1721050131417,158.70478125,0.0001,2]
[332221037,1721050133110,12466.23053328,0.0001,2]
[332221038,1721050134384,1221.83381837,0.0001,2]
[332221039,1721050134632,290.94871821,0.0001,2]
[332221040,1721050136322,20346.87145361,0.0001,2]
[332221041,1721050136355,412.17001752,0.0001,2]
[332221042,1721050144086,155.0,0.0001,2]
[332221043,1721050145880,348.90717992,0.0001,2]
[332221044,1721050149258,299.7771014,0.0001,2]
[332221045,1721050151355,412.17001752,0.0001,2]
[332221046,1721050151887,200.56485485,0.0001,2]
[332221049,1721050155163,155.0,0.0001,2]
[332221079,1721050165509,1461.58581302,0.0001,2]
[332221086,1721050183611,181.39244222,0.0001,2]
[332221088,1721050198608,181.39244222,0.0001,2]
[332221089,1721050202112,560.84585949,0.0001,2]
[332221090,1721050202140,7562.05811425,0.0001,2]
[332221093,1721050203364,150.0,0.0001,2]
[332221094,1721050203587,150.0,0.0001,2]
[332221095,1721050203794,150.0,0.0001,2]
[332221096,1721050203975,151.05873045,0.0001,2]
[332221097,1721050206896,155.0,0.0001,2]
[332221099,1721050211283,66201.39752876,0.0001,2]
[332221100,1721050211306,169760.71426162,0.0001,2]
[332221102,1721050222934,158.55255349,0.0001,2]
[332221103,1721050225086,160.16674786,0.0001,2]
[332221110,1721050232035,-5649.77127694,0.00010522,2]
[332221111,1721050232045,-457.3318276,0.00010622,2]
[332221112,1721050232208,-9113.0994724,0.00010622,2]
[332221113,1721050232218,-661.67087631,0.00010622,2]
[332221114,1721050232226,-200.0,0.00010722,2]
[332221115,1721050232235,-224.44109851,0.00010722,2]
[332221116,1721050232244,-301.2901,0.00010896,2]
[332221117,1721050232253,-610.98,0.00010959,2]
[332221118,1721050232262,-9252.14906276,0.00011097,2]
[332221119,1721050232272,-150.0,0.00011097,2]
[332221120,1721050232281,-1755.44096589,0.00011098,2]
[332221121,1721050232293,-4468.15766745,0.00011098,2]
[332221122,1721050232304,-1614.891351,0.00011098,2]
[332221123,1721050232313,-254.40293043,0.00011098,2]
[332221124,1721050232323,-227.85608612,0.00011098,2]
[332221125,1721050232332,-300.0,0.00011098,2]
[332221127,1721050232341,-155.12603133,0.00011098,2]
[332221128,1721050232350,-2835.14404974,0.00011098,2]
[332221129,1721050232360,-1689.91420777,0.00011098,2]
[332221130,1721050232369,-616.92384194,0.00011098,2]
[332221131,1721050232378,-3813.62160316,0.00011098,2]
[332221132,1721050232388,-1905.64778217,0.00011098,2]
[332221133,1721050232400,-4467.02483465,0.00011098,2]
[332221134,1721050232409,-155.32730712,0.00011098,2]
[332221135,1721050232418,-2495.83595523,0.00011098,2]
[332221136,1721050232427,-218.11438004,0.00011098,2]
[332221137,1721050232438,-263.88862881,0.00011098,2]
[332221138,1721050232447,-2858.29649134,0.00011098,2]
[332221139,1721050232456,-155.17180538,0.00011098,2]
[332221140,1721050232468,-3397.72378841,0.00011098,2]
[332221141,1721050232478,-251.5542779,0.00011098,2]
[332221142,1721050232487,-9511.01401381,0.00011189,2]
[332221143,1721050232496,-1398.66468537,0.00011196,2]
[332221144,1721050232506,-2584.75220922,0.00011196,2]
[332221145,1721050232515,-158.31487623,0.00011197,2]
[332221146,1721050232524,-888.65243698,0.00011197,2]
[332221147,1721050232533,-155.17215386,0.00011197,2]
[332221148,1721050232542,-155.0,0.00011197,2]
[332221149,1721050232553,-1055.11995837,0.00011197,2]
[332221150,1721050232562,-35627.7231892,0.00011199,2]
[332221151,1721050232571,-150.99,0.00011199,2]
[332221152,1721050232580,-156.68063382,0.00011199,2]
[332221153,1721050232590,-796.63488233,0.00011199,2]
[332221154,1721050232599,-1329.43311787,0.00011199,2]
[332221155,1721050232608,-407.47074942,0.00011199,2]
[332221156,1721050232618,-1078.59147478,0.00011199,2]
[332221157,1721050232628,-1266.3458359,0.00011199,2]
[332221158,1721050232637,-1444.88001929,0.00011199,2]
[332221159,1721050232647,-708.35461394,0.00011199,2]
[332221160,1721050232656,-789.45308619,0.00011199,2]
[332221161,1721050232665,-156.0,0.00011199,2]
[332221162,1721050232675,-1444.88001929,0.00011199,2]
[332221163,1721050232684,-528.93489931,0.00011199,2]
[332221164,1721050232694,-545.20703097,0.00011199,2]
[332221165,1721050232703,-155.0,0.00011199,2]
[332221166,1721050232713,-1254.63523304,0.00011199,2]
[332221167,1721050232723,-155.0,0.00011199,2]
[332221168,1721050232732,-192.22,0.0001208,2]
[332221169,1721050232742,-530.56091548,0.00012121,2]
[332221170,1721050232752,-20346.87145361,0.00012121,2]
[332221171,1721050232762,-1221.83381837,0.00012121,2]
[332221172,1721050232771,-159.57745731,0.00012121,2]
[332221173,1721050232780,-213.18588759,0.00012121,2]
[332221174,1721050232790,-155.0,0.00012121,2]
[332221175,1721050232801,-188.85,0.00012227,2]
[332221176,1721050232811,-297.70719904,0.00012273,2]
[332221177,1721050232821,-155.0,0.00012273,2]
[332221178,1721050232830,-235.80691911,0.00012273,2]
[332221179,1721050232840,-202.52407961,0.00012273,2]
[332221180,1721050232850,-155.0,0.00012273,2]
[332221181,1721050232859,-202.21192248,0.00012273,2]
[332221182,1721050232869,-173.47322396,0.00012273,2]
[332221183,1721050232879,-158.78655632,0.00012273,2]
[332221184,1721050232888,-155.0,0.00012273,2]
[332221185,1721050232897,-205.64995214,0.00012302,2]
[332221186,1721050232907,-173.84703855,0.00012302,2]
[332221187,1721050232917,-295.46908239,0.00012302,2]
[332221188,1721050232926,-155.43317393,0.00012302,2]
[332221189,1721050232935,-358.85703166,0.00012302,2]
[332221190,1721050232945,-187.35932368,0.00012302,2]
[332221191,1721050232957,-299.6160734,0.00012302,2]
[332221192,1721050232966,-309.21037067,0.00012302,2]
[332221193,1721050232975,-167.34984429,0.00012302,2]
[332221194,1721050232985,-527.74896505,0.00012302,2]
[332221195,1721050232994,-479.38527587,0.00012302,2]
[332221196,1721050233003,-3131.28564666,0.00012302,2]
[332221197,1721050233013,-430.9664964,0.00012302,2]
[332221198,1721050233022,-176.3604815,0.00012302,2]
[332221199,1721050233031,-251.63069161,0.00012302,2]
[332221200,1721050233041,-176.3604815,0.00012314,2]
[332221201,1721050233053,-500.0,0.00012358,2]
[332221202,1721050233063,-250.0,0.0001251,2]
[332221203,1721050233072,-499.99,0.0001251,2]
[332221204,1721050233082,-250.0,0.00012566,2]
[332221205,1721050233091,-500.0,0.00012598,2]
[332221206,1721050233100,-264.35774578,0.000126,2]
[332221207,1721050233110,-171.47,0.00012618,2]
[332221208,1721050233120,-299.99,0.00012618,2]
[332221209,1721050233129,-555.8,0.00012618,2]
[332221210,1721050233138,-726.27,0.00012634,2]
[332221211,1721050233148,-15364.79,0.00012634,2]
[332221212,1721050233158,-200.0,0.00012634,2]
[332221214,1721050233167,-394.57,0.00012635,2]
[332221215,1721050233176,-1000.0,0.00012642,2]
[332221216,1721050233186,-178.4,0.00012652,2]
[332221217,1721050233195,-428.94,0.00012888,2]
[332221218,1721050233204,-280.42757695,0.000129,2]
[332221219,1721050233214,-280.4275769,0.000129,2]
[332221220,1721050233223,-280.4275769,0.000129,2]
[332221221,1721050233233,-280.4275769,0.000129,2]
[332221222,1721050233242,-280.4275769,0.000129,2]
[332221223,1721050233251,-151.9,0.00012941,2]
[332221224,1721050233261,-419.67,0.00013041,2]
[332221225,1721050233270,-156.52,0.00013041,2]
[332221226,1721050233280,-419.67,0.00013041,2]
[332221227,1721050233289,-418.86,0.00013041,2]
[332221228,1721050233299,-976.4996195,0.0001305,2]
[332221229,1721050233310,-280.4275769,0.000131,2]
[332221230,1721050233320,-300.0,0.00013128,2]
[332221231,1721050233330,-266.73419059,0.00013128,2]
[332221232,1721050233339,-832.71,0.00013141,2]
[332221233,1721050233349,-419.67,0.00013141,2]
[332221234,1721050233358,-419.67,0.00013141,2]
[332221235,1721050233367,-832.71,0.00013141,2]
[332221236,1721050233376,-419.67,0.00013141,2]
[332221237,1721050233390,-832.71,0.00013141,2]
[332221238,1721050233400,-832.71,0.00013141,2]
[332221239,1721050233409,-419.67,0.00013141,2]
[332221240,1721050233418,-832.71,0.00013141,2]
[332221241,1721050233430,-419.67,0.00013141,2]
[332221242,1721050233439,-832.71,0.00013141,2]
[332221243,1721050233448,-419.67,0.00013141,2]
[332221244,1721050233457,-832.71,0.00013141,2]
[332221245,1721050233468,-756.53960123,0.00013148,2]
[332221246,1721050233478,-311.09957736,0.00013178,2]
[332221247,1721050233487,-528.79,0.00013178,2]
[332221248,1721050233497,-2068.929,0.00013229,2]
[332221249,1721050233506,-529.24,0.00013278,2]
[332221250,1721050233517,-300.0,0.00013278,2]
[332221251,1721050233527,-150.0,0.00013278,2]
[332221252,1721050233536,-164.99,0.00013278,2]
[332221253,1721050233546,-150.43,0.00013278,2]
[332221254,1721050233556,-529.24,0.00013278,2]
[332221255,1721050233566,-311.09957735,0.00013359,2]
[332221256,1721050233579,-635.34536723,0.00013386,2]
[332221257,1721050233591,-2380.0,0.00013439,2]
[332221258,1721050233603,-190.844708,0.00013498,2]
[332221259,1721050233616,-157.507227,0.00013498,2]
[332221260,1721050233629,-152.210947,0.00013498,2]
[332221261,1721050233642,-280.4275769,0.000135,2]
[332221262,1721050233652,-155.0,0.00013516,2]
[332221263,1721050233662,-311.09957735,0.00013539,2]
[332221264,1721050233672,-361.0,0.0001356,2]
[332221265,1721050233684,-5817.0,0.0001356,2]
[332221266,1721050233695,-10212.841,0.0001356,2]
[332221267,1721050233707,-1200.0,0.0001356,2]
[332221268,1721050233718,-444.0,0.0001356,2]
[332221269,1721050233729,-150.0,0.0001356,2]
[332221270,1721050233742,-500.0,0.00013698,2]
[332221271,1721050233753,-708.42,0.00013698,2]
[332221272,1721050233766,-500.0,0.00013698,2]
[332221273,1721050233777,-500.0,0.00013698,2]
[332221274,1721050233789,-480.67889811,0.00013698,2]
[332221275,1721050233802,-500.0,0.00013698,2]
[332221276,1721050233813,-500.0,0.00013698,2]
[332221277,1721050233826,-500.0,0.00013698,2]
[332221278,1721050233838,-500.0,0.00013698,2]
[332221279,1721050233851,-500.0,0.00013698,2]
[332221280,1721050233863,-500.0,0.00013698,2]
[332221281,1721050233876,-685.53,0.00013698,2]
[332221282,1721050233887,-500.0,0.00013698,2]
[332221283,1721050233900,-524.56811034,0.00013698,2]
[332221284,1721050233912,-503.02965623,0.00013698,2]
[332221285,1721050233924,-536.28050394,0.00013698,2]
[332221286,1721050233937,-279.80199839,0.00013698,2]
[332221287,1721050233948,-627.83181194,0.00013698,2]
[332221288,1721050233960,-551.78,0.00013699,2]
[332221289,1721050233970,-250.0,0.00013699,2]
[332221290,1721050233980,-200.0,0.00013699,2]
[332221291,1721050233991,-893.5,0.00013699,2]
[332221292,1721050234002,-311.09957735,0.0001372,2]
[332221293,1721050234014,-9417.79475312,0.00013736,2]
[332221294,1721050234024,-708.42,0.00013753,2]
[332221295,1721050234035,-500.0,0.00013753,2]
[332221296,1721050234048,-685.53,0.00013753,2]
[332221297,1721050234061,-746.63981127,0.0001379,2]
[332221298,1721050234073,-746.63981127,0.0001379,2]
[332221299,1721050234085,-746.63981127,0.0001379,2]
[332221300,1721050234097,-746.63981127,0.0001379,2]
[332221301,1721050234108,-746.63981127,0.0001379,2]
[332221302,1721050234120,-746.63981127,0.0001379,2]
[332221303,1721050234133,-746.63981127,0.0001379,2]
[332221304,1721050234145,-746.63981127,0.0001379,2]
[332221305,1721050234158,-746.63981127,0.0001379,2]
[332221306,1721050234170,-708.42,0.00013808,2]